bitfinex-derivatives/quotes_BTCF0:USTF0_20250509
["timestamp","ask_amount","ask_price","bid_price","bid_amount"]
[1746774166075,1.3305647,103220.0,103210.0,0.1937893]
[1746774166473,1.3305647,103220.0,103210.0,0.2564893]
[1746774167281,1.3305647,103220.0,103210.0,0.4164893]
[1746774167481,1.3305647,103220.0,103210.0,0.4174893]
[1746774167482,1.3425647,103220.0,103210.0,0.4174893]
[1746774167882,1.3535647,103220.0,103210.0,0.4184893]
[1746774169674,1.3535647,103220.0,103210.0,0.2247]
[1746774169980,1.3535647,103220.0,103210.0,0.4184893]
[1746774170186,1.3853647,103220.0,103210.0,0.4184893]
[1746774172578,1.49331106,103220.0,103210.0,0.4184893]
[1746774177081,0.023,103220.0,103210.0,0.62331966]
[1746774177286,0.023,103220.0,103210.0,1.00411966]
[1746774178483,0.2930511,103230.0,103220.0,0.1937705]
[1746774178680,0.2930511,103230.0,103220.0,0.6525705]
[1746774179291,0.2446109,103230.0,103220.0,0.8125705]
[1746774179786,0.2446109,103230.0,103220.0,0.4517705]
[1746774179987,0.2556109,103230.0,103220.0,0.56071686]
[1746774180483,0.01342,103230.0,103220.0,0.92151686]
[1746774180679,0.02342,103230.0,103220.0,1.01939285]
[1746774180879,0.02342,103230.0,103220.0,1.03939285]
[1746774182691,0.2171718,103230.0,103220.0,1.03939285]
[1746774183192,0.01942,103230.0,103220.0,1.03939285]
[1746774183492,0.00942,103230.0,103220.0,1.03839285]
[1746774183692,0.01542,103230.0,103220.0,1.03939285]
[1746774183886,0.2091718,103230.0,103220.0,1.03939285]
[1746774184591,0.2091718,103230.0,103220.0,0.94251686]
[1746774184795,0.2091718,103230.0,103220.0,0.8345705]
[1746774185193,0.2091718,103230.0,103220.0,0.8145705]
[1746774185394,0.2417718,103230.0,103220.0,0.8145705]
[1746774185896,0.2417718,103230.0,103220.0,0.4537705]
[1746774186092,0.2417718,103230.0,103220.0,0.8145705]
[1746774186994,0.2091718,103230.0,103220.0,0.8145705]
[1746774187196,0.2091718,103230.0,103220.0,0.92251686]
[1746774187495,0.01542,103230.0,103220.0,0.92251686]
[1746774187796,0.2091718,103230.0,103220.0,0.92251686]
[1746774188301,0.01542,103230.0,103220.0,1.01939285]
[1746774188792,0.01542,103230.0,103220.0,1.03939285]
[1746774189993,0.013,103230.0,103220.0,1.03939285]
[1746774190194,0.2067518,103230.0,103220.0,1.03939285]
[1746774190399,0.013,103230.0,103220.0,0.93144649]
[1746774190996,0.013,103230.0,103220.0,1.03939285]
[1746774191498,0.013,103230.0,103220.0,1.05939285]
[1746774192505,0.013,103230.0,103220.0,0.96251686]
[1746774193604,0.013,103230.0,103220.0,1.05939285]
[1746774195600,0.01542,103230.0,103220.0,1.05939285]
[1746774198703,0.305552,103250.0,103240.0,0.193733]
[1746774198907,0.305552,103250.0,103240.0,0.554533]
[1746774199097,0.305552,103250.0,103240.0,0.811933]
[1746774199695,0.337952,103250.0,103240.0,0.811933]
[1746774200400,0.348952,103250.0,103240.0,0.812933]
[1746774201305,0.356952,103250.0,103240.0,0.813933]
[1746774201803,0.3085228,103250.0,103240.0,0.813933]
[1746774202005,0.019,103250.0,103240.0,1.01873536]
[1746774202303,0.019,103250.0,103240.0,1.38953536]
[1746774203708,0.019,103250.0,103240.0,1.281589]
[1746774203911,0.019,103250.0,103240.0,2.781589]
[1746774204114,0.019,103250.0,103240.0,2.88953536]
[1746774204407,0.019,103250.0,103240.0,1.38953536]
[1746774206202,0.012,103250.0,103240.0,1.38853536]
[1746774207401,0.012,103250.0,103240.0,1.56853536]
[1746774207812,0.008,103250.0,103240.0,1.55753536]
[1746774208000,0.008,103250.0,103240.0,1.279589]
[1746774208205,0.008,103250.0,103240.0,1.38753536]
[1746774208406,0.008,103250.0,103240.0,1.279589]
[1746774208711,0.008,103250.0,103240.0,1.38753536]
[1746774209812,0.008,103250.0,103240.0,1.56753536]
[1746774210312,0.008,103250.0,103240.0,1.71508306]
[1746774210514,0.008,103250.0,103240.0,1.61822706]
[1746774210704,0.008,103250.0,103240.0,1.43822706]
[1746774211207,0.071,103250.0,103240.0,1.43822706]
[1746774211506,0.071,103250.0,103240.0,1.3302807]
[1746774211712,0.071,103250.0,103240.0,1.42822706]
[1746774212608,0.071,103250.0,103240.0,1.28067936]
[1746774214614,0.071,103250.0,103240.0,1.172733]
[1746774214913,0.071,103250.0,103240.0,1.29067936]
[1746774215114,0.071,103250.0,103240.0,1.182733]
[1746774215613,0.071,103250.0,103240.0,1.29067936]
[1746774216007,0.0403,103250.0,103240.0,1.29067936]
[1746774216207,0.008,103250.0,103240.0,1.49067936]
[1746774216404,0.09722,103260.0,103250.0,0.1937142]
[1746774216612,0.09722,103260.0,103250.0,0.63280453]
[1746774216808,0.09722,103260.0,103250.0,0.74075089]
[1746774217115,0.06452,103260.0,103250.0,0.90075089]
[1746774217313,0.06452,103260.0,103250.0,0.91075089]
[1746774217816,0.07052,103260.0,103250.0,0.91175089]
[1746774218017,0.10312,103260.0,103250.0,0.91175089]
[1746774218316,0.11012,103260.0,103250.0,0.91175089]
[1746774218704,0.07752,103260.0,103250.0,0.91175089]
[1746774219416,0.04592,103260.0,103250.0,0.91175089]
[1746774220519,0.07682,103260.0,103250.0,0.91175089]
[1746774223420,0.04592,103260.0,103250.0,0.91175089]
[1746774225614,0.00145369,103280.0,103270.0,0.1936767]
[1746774225815,0.00145369,103280.0,103270.0,1.30148306]
[1746774225816,0.03325369,103280.0,103270.0,1.30148306]
[1746774226214,0.03325369,103280.0,103270.0,1.46148306]
[1746774226614,0.03325369,103280.0,103270.0,1.47133477]
[1746774227123,0.03925369,103280.0,103270.0,1.47133477]
[1746774227423,0.04425369,103280.0,103270.0,1.47133477]
[1746774227623,0.03825369,103280.0,103270.0,1.47133477]
[1746774227923,0.04125369,103280.0,103270.0,1.47133477]
[1746774228312,0.03925369,103280.0,103270.0,1.47133477]
[1746774230124,0.00745369,103280.0,103270.0,1.47133477]
[1746774230516,0.03642,103290.0,103280.0,0.30160436]
[1746774230721,0.00342,103290.0,103280.0,0.617858]
[1746774230921,0.00342,103290.0,103280.0,0.88460436]
[1746774231220,0.00342,103290.0,103280.0,1.04460436]
[1746774231428,0.00342,103290.0,103280.0,1.26142435]
[1746774231729,0.00842,103290.0,103280.0,1.16142435]
[1746774231920,0.04042,103290.0,103280.0,1.16142435]
[1746774232124,0.1318,103300.0,103290.0,0.1936392]
[1746774232320,0.132,103300.0,103290.0,0.6776392]
[1746774232517,0.1,103300.0,103290.0,0.6776392]
[1746774232830,0.1,103300.0,103290.0,2.39353192]
[1746774233028,0.1,103300.0,103290.0,2.59353192]
[1746774233322,0.035,103310.0,103300.0,0.1936205]
[1746774233521,0.035,103310.0,103300.0,0.75516686]
[1746774233919,0.0328,103320.0,103310.0,0.1936017]
[1746774234118,0.0328,103320.0,103310.0,1.07580806]
[1746774234722,0.0328,103320.0,103310.0,0.9678617]
[1746774235325,0.0652,103320.0,103310.0,1.07580806]
[1746774235624,0.002,103320.0,103310.0,1.07580806]
[1746774235927,0.0644,103330.0,103320.0,0.3387429]
[1746774236128,0.0644,103330.0,103320.0,0.9225429]
[1746774236427,0.0644,103330.0,103320.0,1.03048926]
[1746774237130,0.0958,103330.0,103320.0,1.03048926]
[1746774237719,0.0958,103330.0,103320.0,0.9225429]
[1746774237930,0.0958,103330.0,103320.0,1.03048926]
[1746774238228,0.0998,103330.0,103320.0,0.9225429]
[1746774238433,0.0998,103330.0,103320.0,1.03048926]
[1746774238731,0.0998,103330.0,103320.0,0.93681011]
[1746774239328,0.0998,103330.0,103320.0,1.04475647]
[1746774239630,0.0998,103330.0,103320.0,0.93681011]
[1746774239832,0.0998,103330.0,103320.0,1.04475647]
[1746774240031,0.2933643,103330.0,103320.0,1.04475647]
[1746774240230,0.2933643,103330.0,103320.0,0.85571671]
[1746774240929,0.2933643,103330.0,103320.0,0.88811671]
[1746774243928,0.2933643,103330.0,103320.0,0.85571671]
[1746774244121,0.40131066,103330.0,103320.0,0.85571671]
[1746774244324,0.2933643,103330.0,103320.0,0.82541671]
[1746774244727,0.2933643,103330.0,103320.0,0.46461671]
[1746774245131,0.2933643,103330.0,103320.0,0.17426721]
[1746774245328,0.76211066,103330.0,103320.0,0.01426721]
[1746774245528,0.76211066,103330.0,103310.0,0.6511934]
[1746774245529,0.193583,103320.0,103310.0,0.6511934]
[1746774245727,0.36242936,103320.0,103310.0,0.6511934]
[1746774246431,0.254483,103320.0,103310.0,0.6511934]
[1746774246633,0.36242936,103320.0,103310.0,0.5543928]
[1746774246937,0.36442936,103320.0,103310.0,0.5543928]
[1746774247234,0.52442936,103320.0,103310.0,0.5543928]
[1746774248136,0.256483,103320.0,103310.0,0.5543928]
[1746774248345,0.256483,103320.0,103310.0,0.56882297]
[1746774250334,0.256483,103320.0,103310.0,0.59882297]
[1746774251041,0.256483,103320.0,103310.0,0.23802297]
[1746774252737,0.0629,103320.0,103310.0,0.73836933]
[1746774252937,0.0322,103320.0,103310.0,0.73836933]
[1746774253142,0.002,103320.0,103310.0,0.92836933]
[1746774254846,0.68451,103340.0,103330.0,0.1935643]
[1746774255044,0.00541,103340.0,103330.0,0.9151643]
[1746774255342,0.00541,103340.0,103330.0,1.1376643]
[1746774255542,0.00541,103340.0,103330.0,1.14742169]
[1746774255745,0.1989555,103340.0,103330.0,1.14742169]
[1746774256140,0.1989555,103340.0,103330.0,0.78662169]
[1746774256445,0.2320555,103340.0,103330.0,0.78662169]
[1746774256629,0.2671555,103340.0,103330.0,0.3839643]
[1746774257333,0.2671555,103340.0,103330.0,0.2562643]
[1746774257537,0.2671555,103340.0,103330.0,0.36421066]
[1746774257742,0.2671555,103340.0,103330.0,0.72501066]
[1746774257941,0.2671555,103340.0,103330.0,0.6170643]
[1746774258142,0.2671555,103340.0,103330.0,0.88501066]
[1746774258333,0.2671555,103340.0,103330.0,0.7770643]
[1746774258544,0.2671555,103340.0,103330.0,0.4162643]
[1746774259244,0.2671555,103340.0,103330.0,0.2562643]
[1746774259542,0.1935643,103330.0,103320.0,0.5543707]
[1746774259741,0.2873643,103330.0,103320.0,0.69481706]
[1746774259941,0.0635,103330.0,103320.0,0.6175707]
[1746774260144,0.2570643,103330.0,103320.0,0.88551706]
[1746774260438,0.39531066,103330.0,103320.0,0.584]
[1746774260645,0.75611066,103330.0,103320.0,0.1925]
[1746774260944,0.6481643,103330.0,103320.0,0.386083]
[1746774261146,0.8081643,103330.0,103320.0,0.226083]
[1746774262146,0.6481643,103330.0,103320.0,0.226083]
[1746774262342,0.6481643,103330.0,103320.0,0.0325]
[1746774262544,0.6481643,103330.0,103320.0,0.226083]
[1746774262948,0.6481643,103330.0,103320.0,0.0325]
[1746774263447,0.6491643,103330.0,103320.0,0.226083]
[1746774263843,0.2883643,103330.0,103320.0,0.33402936]
[1746774264050,0.2883643,103330.0,103320.0,0.36642936]
[1746774264245,0.2883643,103330.0,103320.0,0.418483]
[1746774264746,0.2883643,103330.0,103320.0,0.2249]
[1746774264935,0.6491643,103330.0,103320.0,0.418483]
[1746774265141,0.75711066,103330.0,103320.0,0.0325]
[1746774265542,0.193583,103320.0,103310.0,0.24041907]
[1746774265742,0.257383,103320.0,103310.0,0.27281907]
[1746774266445,0.257383,103320.0,103310.0,0.63361907]
[1746774267148,0.258383,103320.0,103310.0,0.27281907]
[1746774267549,0.619183,103320.0,103310.0,0.27281907]
[1746774267849,0.258383,103320.0,103310.0,0.27281907]
[1746774269153,0.72712936,103320.0,103310.0,0.04683017]
[1746774269344,1.19159171,103320.0,103310.0,0.01443017]
[1746774269553,0.1936205,103300.0,103290.0,0.03215197]
[1746774269854,0.1936205,103300.0,103280.0,0.0325]
[1746774269855,0.1936392,103290.0,103280.0,0.0325]
[1746774270037,0.6525392,103290.0,103280.0,0.0327]
[1746774270239,0.8125392,103290.0,103280.0,0.226358]
[1746774270447,0.8125392,103290.0,103280.0,0.258858]
[1746774270652,0.8125392,103290.0,103280.0,0.0652]
[1746774270849,0.8125392,103290.0,103280.0,0.258858]
[1746774271249,0.193658,103280.0,103270.0,0.6512991]
[1746774271552,0.259058,103280.0,103270.0,0.69863078]
[1746774272552,0.259058,103280.0,103270.0,0.73133078]
[1746774273044,0.226158,103280.0,103270.0,0.84027714]
[1746774273245,0.226158,103280.0,103270.0,1.00027714]
[1746774273448,0.226158,103280.0,103270.0,1.00127714]
[1746774273648,0.226158,103280.0,103270.0,0.79649398]
[1746774273850,0.256658,103280.0,103270.0,0.79649398]
[1746774274253,0.256658,103280.0,103270.0,0.79549398]
[1746774274555,0.257658,103280.0,103270.0,0.63449398]
[1746774274944,0.257658,103280.0,103270.0,0.27369398]
[1746774276359,0.257658,103280.0,103270.0,0.38164034]
[1746774276558,0.257658,103280.0,103270.0,0.27369398]
[1746774276759,0.256658,103280.0,103270.0,0.27369398]
[1746774276947,0.258658,103280.0,103270.0,0.27369398]
[1746774278253,0.258658,103280.0,103270.0,0.38164034]
[1746774278957,0.258658,103280.0,103270.0,0.27369398]
[1746774279257,0.258658,103280.0,103270.0,0.38164034]
[1746774280257,0.258658,103280.0,103270.0,0.27369398]
[1746774280958,0.258658,103280.0,103270.0,0.38164034]
[1746774281153,0.258658,103280.0,103270.0,0.27369398]
[1746774281746,0.258658,103280.0,103270.0,0.27370838]
[1746774282259,0.619458,103280.0,103270.0,0.27370838]
[1746774283366,0.619458,103280.0,103270.0,0.38165474]
[1746774283566,0.619458,103280.0,103270.0,0.27370838]
[1746774283756,0.619458,103280.0,103270.0,0.38165474]
[1746774284267,0.258658,103280.0,103270.0,0.38165474]
[1746774284452,0.258658,103280.0,103270.0,0.27370838]
[1746774284654,0.258658,103280.0,103270.0,0.74245474]
[1746774285155,0.258658,103280.0,103270.0,0.63450838]
[1746774285357,0.261078,103280.0,103270.0,0.74245474]
[1746774285959,0.260078,103280.0,103270.0,0.63450838]
[1746774286158,0.260078,103280.0,103270.0,0.74245474]
[1746774286360,0.260078,103280.0,103270.0,0.63450838]
[1746774286551,0.260078,103280.0,103270.0,0.74245474]
[1746774286753,0.260078,103280.0,103270.0,0.63450838]
[1746774287362,0.260078,103280.0,103270.0,0.74245474]
[1746774287561,0.260078,103280.0,103270.0,0.63450838]
[1746774287765,0.260078,103280.0,103270.0,0.74245474]
[1746774288262,0.260078,103280.0,103270.0,0.63450838]
[1746774288465,0.260078,103280.0,103270.0,0.74245474]
[1746774288959,0.260078,103280.0,103270.0,0.63450838]
[1746774289156,0.260078,103280.0,103270.0,0.74245474]
[1746774289750,0.260078,103280.0,103270.0,0.27370838]
[1746774289963,0.260078,103280.0,103270.0,0.63450838]
[1746774290364,0.260078,103280.0,103270.0,0.74245474]
[1746774290863,0.260078,103280.0,103270.0,0.63450838]
[1746774291161,0.260078,103280.0,103270.0,0.90245474]
[1746774291362,0.197078,103280.0,103270.0,0.90245474]
[1746774291663,0.197078,103280.0,103270.0,0.79450838]
[1746774291858,0.00342,103280.0,103270.0,0.90245474]
[1746774293054,0.00342,103280.0,103270.0,0.95245474]
[1746774293252,0.290414,103310.0,103300.0,0.1936205]
[1746774293457,0.386214,103310.0,103300.0,0.30156686]
[1746774293760,0.386214,103310.0,103300.0,0.36516686]
[1746774293967,0.2566083,103310.0,103300.0,0.2572205]
[1746774294265,0.2566083,103310.0,103300.0,0.2897205]
[1746774294464,0.2914083,103310.0,103300.0,0.2897205]
[1746774294963,0.2914083,103310.0,103300.0,0.2572205]
[1746774295168,0.2914083,103310.0,103300.0,0.4172205]
[1746774297364,0.002,103310.0,103300.0,0.55656686]
[1746774297567,0.002,103310.0,103300.0,0.8194205]
[1746774297869,0.002,103310.0,103300.0,0.9271864]
[1746774298064,0.002,103310.0,103300.0,1.2739864]
[1746774298260,0.002,103310.0,103300.0,1.0839864]
[1746774299456,0.1959939,103320.0,103310.0,0.1936017]
[1746774299661,0.00241,103320.0,103310.0,0.72544806]
[1746774299871,0.00241,103320.0,103310.0,1.03339442]
[1746774300168,0.00241,103320.0,103310.0,0.88544806]
[1746774300364,0.00241,103320.0,103310.0,0.7775017]
[1746774300570,0.00241,103320.0,103310.0,0.7975017]
[1746774300762,0.00341,103320.0,103310.0,0.90544806]
[1746774300962,0.00341,103320.0,103310.0,0.7975017]
[1746774301256,0.00241,103320.0,103310.0,0.7975017]
[1746774301456,0.00341,103320.0,103310.0,1.26844006]
[1746774301663,0.00341,103320.0,103310.0,1.16844006]
[1746774302169,0.00341,103320.0,103310.0,1.0604937]
[1746774302370,0.00341,103320.0,103310.0,1.16844006]
[1746774302566,0.00341,103320.0,103310.0,1.26844006]
[1746774302765,0.00341,103320.0,103310.0,1.16844006]
[1746774304269,0.00341,103320.0,103310.0,1.26844006]
[1746774304476,0.00341,103320.0,103310.0,2.5604937]
[1746774304771,0.00341,103320.0,103310.0,1.07164806]
[1746774305168,0.00341,103320.0,103310.0,0.9637017]
[1746774305464,0.00341,103320.0,103310.0,1.07164806]
[1746774305661,0.0657,103340.0,103330.0,0.1935643]
[1746774305873,0.0336,103340.0,103330.0,0.5543643]
[1746774306174,0.0336,103340.0,103330.0,0.7781643]
[1746774306370,0.2271455,103340.0,103330.0,0.7781643]
[1746774306570,0.33509186,103340.0,103330.0,0.7781643]
[1746774306776,0.14154636,103340.0,103330.0,0.7781643]
[1746774306965,0.0336,103340.0,103330.0,0.7781643]
[1746774307166,0.0346,103340.0,103330.0,0.4173643]
[1746774308263,0.0346,103340.0,103330.0,0.7781643]
[1746774308468,0.69689186,103340.0,103330.0,0.4173643]
[1746774308673,0.69689186,103340.0,103330.0,0.3857643]
[1746774308674,0.72889186,103340.0,103330.0,0.3857643]
[1746774308877,0.72889186,103340.0,103330.0,0.3535643]
[1746774309281,0.7809455,103340.0,103330.0,0.1935643]
[1746774309578,0.88889186,103340.0,103330.0,0.1935643]
[1746774309878,0.1935643,103330.0,103320.0,0.4023482]
[1746774310078,0.75811066,103330.0,103320.0,0.4023482]
[1746774310472,0.6501643,103330.0,103320.0,0.4023482]
[1746774311172,0.6501643,103330.0,103320.0,0.5623482]
[1746774311373,0.4566,103330.0,103320.0,0.5623482]
[1746774311576,0.5885585,103340.0,103330.0,0.1935643]
[1746774311778,0.098,103340.0,103330.0,0.6189643]
[1746774312177,0.098,103340.0,103330.0,0.7789643]
[1746774312573,0.2915455,103340.0,103330.0,0.7789643]
[1746774312876,0.098,103340.0,103330.0,0.7789643]
[1746774313481,0.2915455,103340.0,103330.0,0.7789643]
[1746774314274,0.003,103340.0,103330.0,0.88691066]
[1746774315579,0.003,103340.0,103330.0,0.9012526]
[1746774315983,0.1965455,103340.0,103330.0,0.79330624]
[1746774316183,0.1965455,103340.0,103330.0,0.9012526]
[1746774317076,0.1965455,103340.0,103330.0,0.79330624]
[1746774317382,0.003,103340.0,103330.0,0.9012526]
[1746774317982,0.003,103340.0,103330.0,0.79330624]
[1746774318281,0.003,103340.0,103330.0,0.9012526]
[1746774322079,0.003,103340.0,103330.0,0.79330624]
[1746774322277,0.003,103340.0,103330.0,0.9012526]
[1746774322881,0.003,103340.0,103330.0,0.79330624]
[1746774323077,0.003,103340.0,103330.0,0.9012526]
[1746774323989,0.003,103340.0,103330.0,0.79330624]
[1746774324284,0.003,103340.0,103330.0,0.9012526]
[1746774324485,0.003,103340.0,103330.0,0.79330624]
[1746774324679,0.003,103340.0,103330.0,0.9012526]
[1746774324878,0.1965455,103340.0,103330.0,0.79330624]
[1746774325072,0.1965455,103340.0,103330.0,0.9012526]
[1746774325073,0.2600455,103340.0,103330.0,0.9012526]
[1746774325278,0.0665,103340.0,103330.0,0.7412526]
[1746774325986,0.003,103340.0,103330.0,0.7412526]
[1746774326187,0.003,103340.0,103330.0,0.9012526]
[1746774328787,0.003,103340.0,103330.0,0.9112526]
[1746774329384,0.003,103340.0,103330.0,0.9012526]
[1746774330582,0.003,103340.0,103330.0,0.79330624]
[1746774330992,0.003,103340.0,103330.0,0.9012526]
[1746774331190,0.003,103340.0,103330.0,0.79330624]
[1746774331383,0.003,103340.0,103330.0,0.9012526]
[1746774331583,0.003,103340.0,103330.0,0.79330624]
[1746774331884,0.003,103340.0,103330.0,0.9012526]
[1746774332786,0.003,103340.0,103330.0,0.81330624]
[1746774332975,0.003,103340.0,103330.0,0.9212526]
[1746774333990,0.003,103340.0,103330.0,0.81330624]
[1746774334178,0.003,103340.0,103330.0,0.9212526]
[1746774334884,0.003,103340.0,103330.0,1.0180246]
[1746774335285,0.02763777,103360.0,103350.0,0.1935268]
[1746774335483,0.00445182,103380.0,103370.0,0.1934894]
[1746774335789,0.33736878,103380.0,103370.0,0.3608]
[1746774335985,0.47621514,103380.0,103370.0,0.5855894]
[1746774336189,0.63621514,103380.0,103370.0,0.5542894]
[1746774336389,0.63621514,103380.0,103370.0,0.3608]
[1746774336592,0.1934894,103370.0,103360.0,0.3707196]
[1746774336806,0.1934894,103370.0,103350.0,0.4575608]
[1746774336807,0.44632106,103370.0,103350.0,0.4575608]
[1746774336985,0.72315446,103360.0,103350.0,0.3067907]
[1746774337183,0.6152081,103360.0,103350.0,0.26811882]
[1746774337384,0.36235446,103360.0,103350.0,0.26811882]
[1746774337782,0.2544081,103360.0,103350.0,0.62891882]
[1746774338078,0.03411,103370.0,103360.0,0.1935081]
[1746774338279,0.39644576,103370.0,103360.0,0.6192081]
[1746774339192,0.39644576,103370.0,103360.0,0.7792081]
[1746774340087,0.39644576,103370.0,103360.0,0.6192081]
[1746774340287,0.09501,103370.0,103360.0,0.6192081]
[1746774340482,0.06411,103370.0,103360.0,0.6493081]
[1746774341187,0.00241,103370.0,103360.0,0.8093081]
[1746774342894,0.1958994,103370.0,103360.0,0.8093081]
[1746774343094,0.30384576,103370.0,103360.0,0.6493081]
[1746774343294,0.2273994,103370.0,103360.0,0.6493081]
[1746774343597,0.03391,103370.0,103360.0,0.6493081]
[1746774344095,0.03391,103370.0,103360.0,0.8093081]
[1746774344294,0.00241,103370.0,103360.0,0.8093081]
[1746774345094,0.00241,103370.0,103360.0,0.91725446]
[1746774345884,0.00241,103370.0,103360.0,0.91925446]
[1746774347193,0.003,103380.0,103370.0,0.1934894]
[1746774347497,0.003,103380.0,103370.0,0.8299694]
[1746774347999,0.0667,103380.0,103370.0,0.8299694]
[1746774348187,0.0667,103380.0,103370.0,0.9899694]
[1746774349189,0.0339,103380.0,103370.0,0.9899694]
[1746774349396,0.003,103380.0,103370.0,0.9899694]
[1746774350302,0.003,103380.0,103370.0,0.9399694]
[1746774350499,0.003,103380.0,103370.0,0.9799694]
[1746774350797,0.3226,103440.0,103430.0,0.1933771]
[1746774350989,0.0614,103440.0,103430.0,0.66212346]
[1746774351195,0.0614,103440.0,103430.0,0.36285747]
[1746774351393,0.36270476,103440.0,103430.0,0.36285747]
[1746774352297,0.2864584,103440.0,103430.0,0.72365747]
[1746774353000,0.39440476,103440.0,103430.0,0.36285747]
[1746774353297,0.2864584,103440.0,103430.0,0.72365747]
[1746774353703,0.2864584,103440.0,103430.0,0.7141771]
[1746774353903,0.2864584,103440.0,103430.0,0.7444771]
[1746774354105,0.2864584,103440.0,103430.0,0.75914993]
[1746774354603,0.0931,103440.0,103430.0,0.75914993]
[1746774354801,0.2864584,103440.0,103430.0,0.89769629]
[1746774355201,0.2864584,103440.0,103430.0,0.78974993]
[1746774357512,0.2864584,103440.0,103430.0,0.42894993]
[1746774357711,0.2864584,103440.0,103430.0,0.78974993]
[1746774361315,0.39440476,103440.0,103430.0,0.75914993]
[1746774361707,0.2864584,103440.0,103430.0,0.39834993]
[1746774362013,0.2864584,103440.0,103430.0,0.78984993]
[1746774363618,0.39440476,103440.0,103430.0,0.78984993]
[1746774363913,0.2864584,103440.0,103430.0,0.78984993]
[1746774369818,0.39440476,103440.0,103430.0,0.78984993]
[1746774370217,0.2864584,103440.0,103430.0,0.78984993]
[1746774372514,0.2864584,103440.0,103430.0,0.82134993]
[1746774374615,0.95983112,103440.0,103430.0,0.17467283]
[1746774375221,0.95983112,103440.0,103430.0,0.20804993]
[1746774375422,0.95983112,103440.0,103430.0,0.24134993]
[1746774375814,0.95983112,103440.0,103430.0,0.04797283]
[1746774376220,1.11983112,103440.0,103430.0,0.04797283]
[1746774377126,0.95983112,103440.0,103430.0,0.04797283]
[1746774377527,0.7439384,103440.0,103430.0,0.24134993]
[1746774377720,0.85188476,103440.0,103430.0,0.04797283]
[1746774378027,0.95983112,103440.0,103430.0,0.08097283]
[1746774378228,0.7439384,103440.0,103430.0,0.04797283]
[1746774378523,0.86315112,103440.0,103430.0,0.04797283]
[1746774380417,0.86315112,103440.0,103430.0,0.07977283]
[1746774383027,0.1933958,103420.0,103410.0,0.3911]
[1746774383330,0.1933958,103420.0,103410.0,0.4253]
[1746774383331,0.30134216,103420.0,103410.0,0.4253]
[1746774383530,0.75624216,103420.0,103410.0,0.0645]
[1746774384234,0.91624216,103420.0,103410.0,0.0645]
[1746774384437,0.8082958,103420.0,103410.0,0.0655]
[1746774384633,0.91624216,103420.0,103410.0,0.08120134]
[1746774384837,0.91624216,103420.0,103410.0,0.04850134]
[1746774385338,1.02418852,103420.0,103410.0,0.04850134]
[1746774385535,0.91624216,103420.0,103410.0,0.04850134]
[1746774385837,1.12088452,103420.0,103410.0,0.01570134]
[1746774386235,1.01293816,103420.0,103410.0,0.01470134]
[1746774386434,0.1934145,103410.0,103400.0,0.42475067]
[1746774386635,0.36306086,103410.0,103400.0,0.42475067]
[1746774386835,0.2551145,103410.0,103400.0,0.42475067]
[1746774387036,0.36306086,103410.0,103400.0,0.42475067]
[1746774387238,0.4151145,103410.0,103400.0,0.61818387]
[1746774387537,0.52306086,103410.0,103400.0,0.42475067]
[1746774388740,0.52306086,103410.0,103400.0,0.61818387]
[1746774389134,0.4151145,103410.0,103400.0,0.61818387]
[1746774389347,0.3837145,103410.0,103400.0,0.61818387]
[1746774389738,0.3837145,103410.0,103400.0,0.63281844]
[1746774390245,0.2237145,103410.0,103400.0,0.63281844]
[1746774391041,0.33166086,103410.0,103400.0,0.63281844]
[1746774391244,0.36286086,103410.0,103400.0,0.63281844]
[1746774391737,0.61892989,103430.0,103400.0,0.86444744]
[1746774392043,0.13843169,103430.0,103420.0,1.02294216]
[1746774392241,0.3159129,103440.0,103430.0,0.1933771]
[1746774392435,0.4429966,103440.0,103430.0,0.4228]
[1746774392634,0.5068966,103440.0,103430.0,0.062]
[1746774392937,0.5068966,103440.0,103430.0,0.4228]
[1746774393128,0.5068966,103440.0,103430.0,0.2553771]
[1746774393329,0.5068966,103440.0,103430.0,0.6161771]
[1746774393534,0.1225481,103440.0,103430.0,0.72412346]
[1746774393938,0.3159065,103440.0,103430.0,0.72412346]
[1746774394140,0.1933584,103440.0,103430.0,0.72412346]
[1746774394341,0.1933584,103440.0,103430.0,0.6161771]
[1746774394643,0.2237584,103440.0,103430.0,0.2553771]
[1746774394843,0.2547584,103440.0,103430.0,0.2553771]
[1746774395147,0.4147584,103440.0,103430.0,0.6161771]
[1746774395446,0.4171684,103440.0,103430.0,0.6161771]
[1746774397246,0.2571684,103440.0,103430.0,0.6161771]
[1746774397546,0.2571684,103440.0,103430.0,0.72412346]
[1746774397747,0.1957684,103440.0,103430.0,0.72412346]
[1746774398838,0.1957684,103440.0,103430.0,0.6161771]
[1746774399440,0.00241,103440.0,103430.0,0.72412346]
[1746774400037,0.1957684,103440.0,103430.0,0.72412346]
[1746774400240,0.00241,103440.0,103430.0,0.72412346]
[1746774401248,0.00241,103440.0,103430.0,0.88412346]
[1746774403346,1e-07,103440.0,103430.0,0.95412346]
[1746774403548,1e-07,103440.0,103430.0,1.54148346]
[1746774404253,1e-07,103440.0,103430.0,1.82942982]
[1746774404446,1e-07,103440.0,103430.0,1.54148346]
[1746774404643,1e-07,103440.0,103430.0,1.0835371]
[1746774404839,1e-07,103440.0,103430.0,1.19148346]
[1746774405045,1e-07,103440.0,103430.0,1.33268346]
[1746774405651,1e-07,103440.0,103430.0,1.33224346]
[1746774406542,1e-07,103440.0,103430.0,1.23556346]
[1746774407150,0.1933585,103440.0,103430.0,0.8461771]
[1746774407339,0.1933585,103440.0,103430.0,1.16612346]
[1746774407545,1e-07,103440.0,103430.0,1.16612346]
[1746774409454,1e-07,103440.0,103430.0,1.32612346]
[1746774409844,1e-07,103440.0,103430.0,1.42280346]
[1746774410142,1e-07,103440.0,103430.0,1.3148571]
[1746774410345,1e-07,103440.0,103430.0,1.22612346]
[1746774410950,1e-07,103440.0,103430.0,1.32612346]
[1746774411449,1e-07,103440.0,103430.0,1.2181771]
[1746774411655,1e-07,103440.0,103430.0,1.1181771]
[1746774411855,1e-07,103440.0,103430.0,1.22612346]
[1746774412150,1e-07,103440.0,103430.0,1.42280346]
[1746774412547,1e-07,103440.0,103430.0,1.3148571]
[1746774412746,1e-07,103440.0,103430.0,1.42280346]
[1746774414154,1e-07,103440.0,103430.0,1.3148571]
[1746774414356,1e-07,103440.0,103430.0,1.42280346]
[1746774414854,1e-07,103440.0,103430.0,0.8361771]
[1746774415054,1e-07,103440.0,103430.0,1.0560971]